lending/lending_fUSD_20260206
["ID","MTS","AMOUNT","RATE_DAILY","PERIOD"]
[404646145,1770373898787,-500.0,0.00043287,120]
[404646146,1770373898802,-500.0,0.00043287,120]
[404646147,1770373898818,-169.04415003,0.00043287,120]
[404646148,1770373898833,-500.0,0.00043287,120]
[404646149,1770373898851,-500.0,0.00043287,120]
[404646150,1770373898867,-335.7978,0.00043287,120]
[404646151,1770373898881,-500.0,0.00043287,120]
[404646152,1770373898896,-500.0,0.00043287,120]
[404646153,1770373898912,-500.0,0.00043287,120]
[404646154,1770373898927,-500.0,0.00043287,120]
[404646155,1770373898941,-500.0,0.00043287,120]
[404646156,1770373898956,-500.0,0.00043287,120]
[404646157,1770373898972,-183.97337432,0.00043287,120]
[404646158,1770373898988,-500.0,0.00043287,120]
[404646159,1770373899003,-500.0,0.00043287,120]
[404646160,1770373899019,-380.0657252,0.00043287,120]
[404646161,1770373899034,-192.36917711,0.00043287,120]
[404646162,1770373899048,-1043.91,0.00043287,120]
[404646163,1770373899063,-1043.91,0.00043287,120]
[404646164,1770373899082,-1043.91,0.00043287,120]
[404646165,1770373899099,-163.75564398,0.00043287,120]
[404646166,1770373899114,-1043.91,0.00043287,120]
[404646167,1770373899142,-1043.91,0.00043287,120]
[404646168,1770373899158,-1043.91,0.00043287,120]
[404646169,1770373899174,-1043.91,0.00043287,120]
[404646170,1770373899188,-1043.91,0.00043287,120]
[404646171,1770373899203,-1043.91,0.00043287,120]
[404646172,1770373899218,-1043.91,0.00043287,120]
[404646173,1770373899233,-1043.91,0.00043287,120]
[404646174,1770373899250,-1043.91,0.00043287,120]
[404646175,1770373899266,-1043.91,0.00043287,120]
[404646176,1770373899280,-1043.91,0.00043287,120]
[404646177,1770373899295,-1043.91,0.00043287,120]
[404646178,1770373899309,-1043.91,0.00043287,120]
[404646179,1770373899475,-1043.91,0.00043287,120]
[404646180,1770373899490,-1043.91,0.00043287,120]
[404646181,1770373899500,-1043.91,0.00043287,120]
[404646182,1770373899509,-1043.91,0.00043287,120]
[404646183,1770373899519,-1043.91,0.00043287,120]
[404646184,1770373899528,-1043.91,0.00043287,120]
[404646185,1770373899538,-1043.91,0.00043287,120]
[404646186,1770373899548,-1043.95885524,0.00043287,120]
[404646187,1770373899558,-500.0,0.00043287,120]
[404646188,1770373899567,-500.0,0.00043287,120]
[404646189,1770373899577,-500.0,0.00043287,120]
[404646190,1770373899588,-484.66156046,0.00043287,120]
[404646191,1770373899597,-157.43368497,0.00043287,120]
[404646192,1770373899607,-500.0,0.00043287,120]
[404646193,1770373899617,-500.0,0.00043287,120]
[404646194,1770373899626,-500.0,0.00043287,120]
[404646195,1770373899636,-500.0,0.00043287,120]
[404646196,1770373899645,-500.0,0.00043287,120]
[404646197,1770373899655,-500.0,0.00043287,120]
[404646198,1770373899664,-500.0,0.00043287,120]
[404646199,1770373899673,-399.92399513,0.00043287,120]
[404646200,1770373899683,-200.64372138,0.00043287,120]
[404646201,1770373899692,-186.70554018,0.00043287,120]
[404646202,1770373899702,-500.0,0.00043287,120]
[404646203,1770373899711,-221.89850087,0.00043287,120]
[404646204,1770373899721,-500.0,0.00043287,120]
[404646205,1770373899731,-312.22683923,0.00043287,120]
[404646206,1770373899740,-500.0,0.00043287,120]
[404646207,1770373899750,-500.0,0.00043287,120]
[404646208,1770373899760,-500.0,0.00043287,120]
[404646209,1770373899769,-578.49113309,0.00043287,120]
[404646210,1770373899778,-461.61759532,0.00043287,120]
[404646211,1770373899788,-500.0,0.00043287,120]
[404646212,1770373899798,-500.0,0.00043287,120]
[404646213,1770373899807,-500.0,0.00043287,120]
[404646214,1770373899817,-500.0,0.00043287,120]
[404646215,1770373899826,-224.53371451,0.00043287,120]
[404646216,1770373899836,-500.0,0.00043287,120]
[404646217,1770373899845,-550.4299987,0.00043287,120]
[404646218,1770373899856,-500.0,0.00043287,120]
[404646219,1770373899865,-500.0,0.00043287,120]
[404646220,1770373899875,-500.0,0.00043287,120]
[404646221,1770373899886,-500.0,0.00043287,120]
[404646222,1770373899896,-500.0,0.00043287,120]
[404646223,1770373899906,-500.0,0.00043287,120]
[404646224,1770373899915,-500.0,0.00043287,120]
[404646225,1770373899925,-500.0,0.00043287,120]
[404646226,1770373899935,-500.0,0.00043287,120]
[404646227,1770373899945,-500.0,0.00043287,120]
[404646228,1770373899956,-500.0,0.00043287,120]
[404646229,1770373899965,-500.0,0.00043287,120]
[404646230,1770373899974,-500.0,0.00043287,120]
[404646231,1770373899984,-500.0,0.00043287,120]
[404646232,1770373899993,-236.58823392,0.00043287,120]
[404646233,1770373900002,-500.0,0.00043287,120]
[404646234,1770373900012,-500.0,0.00043287,120]
[404646235,1770373900022,-500.0,0.00043287,120]
[404646236,1770373900032,-500.0,0.00043287,120]
[404646237,1770373900042,-500.0,0.00043287,120]
[404646238,1770373900052,-500.0,0.00043287,120]
[404646239,1770373900062,-500.0,0.00043287,120]
[404646240,1770373900076,-500.0,0.00043287,120]
[404646241,1770373900085,-500.0,0.00043287,120]
[404646242,1770373900095,-440.49938587,0.00043287,120]
[404646243,1770373900104,-500.0,0.00043287,120]
[404646244,1770373900114,-500.0,0.00043287,120]
[404646245,1770373900124,-500.0,0.00043287,120]
[404646246,1770373900133,-500.0,0.00043287,120]
[404646247,1770373900143,-500.0,0.00043287,120]
[404646248,1770373900153,-563.95558956,0.00043287,120]
[404646249,1770373900162,-500.0,0.00043287,120]
[404646250,1770373900172,-500.0,0.00043287,120]
[404646251,1770373900181,-500.0,0.00043287,120]
[404646252,1770373900191,-500.0,0.00043287,120]
[404646253,1770373900201,-500.0,0.00043287,120]
[404646254,1770373900210,-500.0,0.00043287,120]
[404646255,1770373900220,-500.0,0.00043287,120]
[404646256,1770373900230,-500.0,0.00043287,120]
[404646257,1770373900239,-168.4785884,0.00043287,120]
[404646258,1770373900250,-500.0,0.00043287,120]
[404646259,1770373900259,-500.0,0.00043287,120]
[404646260,1770373900269,-500.0,0.00043287,120]
[404646261,1770373900278,-500.0,0.00043287,120]
[404646262,1770373900288,-500.0,0.00043287,120]
[404646263,1770373900299,-500.0,0.00043287,120]
[404646264,1770373900308,-500.0,0.00043287,120]
[404646265,1770373900319,-500.0,0.00043287,120]
[404646266,1770373900328,-500.0,0.00043287,120]
[404646267,1770373900340,-500.0,0.00043287,120]
[404646268,1770373900351,-500.0,0.00043287,120]
[404646269,1770373900360,-500.0,0.00043287,120]
[404646270,1770373900371,-500.0,0.00043287,120]
[404646271,1770373900381,-500.0,0.00043287,120]
[404646272,1770373900391,-536.45043257,0.00043287,120]
[404646273,1770373900400,-500.0,0.00043287,120]
[404646274,1770373900411,-500.0,0.00043287,2]
[404646275,1770373900421,-500.0,0.00043287,120]
[404646276,1770373900431,-513.36568373,0.00043287,120]
[404646277,1770373900441,-500.0,0.00043287,2]
[404646278,1770373900450,-500.0,0.00043287,120]
[404646279,1770373900460,-161.40005323,0.00043287,2]
[404646280,1770373900470,-500.0,0.00043287,120]
[404646281,1770373900479,-500.0,0.00043287,120]
[404646282,1770373900489,-557.52,0.00043287,120]
[404646283,1770373900499,-212.68055445,0.00043287,120]
[404646284,1770373900509,-557.52,0.00043287,120]
[404646285,1770373900518,-557.52,0.00043287,120]
[404646286,1770373900528,-557.52,0.00043287,120]
[404646287,1770373900538,-500.0,0.00043287,120]
[404646288,1770373900548,-557.52,0.00043287,120]
[404646289,1770373900557,-500.0,0.00043287,120]
[404646290,1770373900566,-500.0,0.00043287,120]
[404646291,1770373900576,-557.52,0.00043287,120]
[404646292,1770373900585,-176.78338659,0.00043287,120]
[404646293,1770373900595,-500.0,0.00043287,120]
[404646294,1770373900605,-557.52,0.00043287,120]
[404646295,1770373900614,-500.0,0.00043287,120]
[404646296,1770373900624,-557.52,0.00043287,120]
[404646297,1770373900634,-500.0,0.00043287,120]
[404646298,1770373900644,-557.52,0.00043287,120]
[404646299,1770373900653,-500.0,0.00043287,120]
[404646300,1770373900663,-557.52,0.00043287,120]
[404646301,1770373900673,-500.0,0.00043287,120]
[404646302,1770373900683,-557.52,0.00043287,120]
[404646303,1770373900692,-500.0,0.00043287,120]
[404646304,1770373900702,-500.0,0.00043287,120]
[404646305,1770373900711,-557.52,0.00043287,120]
[404646306,1770373900722,-500.0,0.00043287,120]
[404646307,1770373900731,-500.0,0.00043287,120]
[404646308,1770373900741,-500.0,0.00043287,120]
[404646309,1770373900750,-557.52,0.00043287,120]
[404646310,1770373900760,-500.0,0.00043287,120]
[404646311,1770373900769,-500.0,0.00043287,120]
[404646312,1770373900779,-557.52,0.00043287,120]
[404646313,1770373900788,-500.0,0.00043287,120]
[404646314,1770373900797,-500.0,0.00043287,120]
[404646315,1770373900807,-500.0,0.00043287,120]
[404646316,1770373900817,-500.0,0.00043287,120]
[404646317,1770373900827,-500.0,0.00043287,120]
[404646318,1770373900837,-557.52,0.00043287,120]
[404646319,1770373900846,-500.0,0.00043287,120]
[404646320,1770373900856,-281.35121924,0.00043287,120]
[404646321,1770373900866,-500.0,0.00043287,120]
[404646322,1770373900876,-557.52,0.00043287,120]
[404646323,1770373900885,-500.0,0.00043287,120]
[404646324,1770373900895,-500.0,0.00043287,120]
[404646325,1770373900904,-532.08179788,0.00043287,120]
[404646326,1770373900913,-557.52,0.00043287,120]
[404646327,1770373900923,-500.0,0.00043287,120]
[404646328,1770373900933,-500.0,0.00043287,120]
[404646329,1770373900943,-557.52,0.00043287,120]
[404646330,1770373900953,-500.0,0.00043287,120]
[404646331,1770373900963,-500.0,0.00043287,120]
[404646332,1770373900972,-557.52,0.00043287,120]
[404646333,1770373900981,-500.0,0.00043287,120]
[404646334,1770373900991,-500.0,0.00043287,120]
[404646335,1770373901000,-500.0,0.00043287,120]
[404646336,1770373901009,-557.52,0.00043287,120]
[404646337,1770373901018,-586.90505942,0.00043287,120]
[404646338,1770373901027,-500.0,0.00043287,120]
[404646339,1770373901036,-557.52,0.00043287,120]
[404646340,1770373901045,-363.07462835,0.00043287,120]
[404646341,1770373901056,-557.52,0.00043287,120]
[404646342,1770373901067,-557.52,0.00043287,120]
[404646343,1770373901079,-557.7063426,0.00043287,120]
[404646344,1770373901089,-500.0,0.00043287,120]
[404646345,1770373901098,-500.0,0.00043287,120]
[404646346,1770373901107,-748.02,0.00043287,120]
[404646347,1770373901117,-500.0,0.00043287,120]
[404646348,1770373901126,-500.0,0.00043287,120]
[404646349,1770373901135,-748.02,0.00043287,120]
[404646350,1770373901147,-500.0,0.00043287,120]
[404646351,1770373901157,-500.0,0.00043287,120]
[404646352,1770373901168,-748.02,0.00043287,120]
[404646353,1770373901178,-500.0,0.00043287,120]
[404646354,1770373901187,-500.0,0.00043287,120]
[404646355,1770373901197,-748.02,0.00043287,120]
[404646356,1770373901206,-500.0,0.00043287,120]
[404646357,1770373901217,-500.0,0.00043287,120]
[404646358,1770373901227,-748.02,0.00043287,120]
[404646359,1770373901237,-500.0,0.00043287,120]
[404646360,1770373901247,-500.0,0.00043287,120]
[404646361,1770373901257,-748.02,0.00043287,120]
[404646362,1770373901266,-500.0,0.00043287,120]
[404646363,1770373901275,-401.27221835,0.00043287,120]
[404646364,1770373901285,-748.02,0.00043287,120]
[404646365,1770373901296,-500.0,0.00043287,120]
[404646366,1770373901306,-748.02,0.00043287,120]
[404646367,1770373901322,-500.0,0.00043287,120]
[404646368,1770373901332,-748.02,0.00043287,120]
[404646369,1770373901341,-500.0,0.00043287,120]
[404646370,1770373901349,-748.02,0.00043287,120]
[404646371,1770373901359,-500.0,0.00043287,120]
[404646372,1770373901368,-500.0,0.00043287,120]
[404646373,1770373901378,-748.02,0.00043287,120]
[404646374,1770373901505,-515.4261012,0.00043287,120]
[404646375,1770373901517,-748.02,0.00043287,120]
[404646376,1770373901527,-500.0,0.00043287,120]
[404646377,1770373901536,-748.02,0.00043287,120]
[404646378,1770373901545,-236.10648503,0.00043287,120]
[404646379,1770373901555,-748.02,0.00043287,120]
[404646380,1770373901564,-748.02,0.00043287,120]
[404646381,1770373901574,-748.02,0.00043287,120]
[404646382,1770373901584,-748.02,0.00043287,120]
[404646383,1770373901593,-748.02,0.00043287,120]
[404646384,1770373901603,-748.02,0.00043287,120]
[404646385,1770373901612,-748.02,0.00043287,120]
[404646386,1770373901621,-1000.0,0.0004329,14]
[404646387,1770373901631,-1300.0,0.00043298,60]
[404646388,1770373901640,-500.0,0.00043298,60]
[404646389,1770373901649,-150.0,0.00043301,120]
[404646390,1770373901658,-845.0,0.00043302,16]
[404646391,1770373901667,-3489.0,0.00043302,16]
[404646392,1770373901677,-500.0,0.00043353,30]
[404646393,1770373901687,-2657.35375652,0.00043366,2]
[404646394,1770373901696,-150.0,0.00043385,30]
[404646395,1770373901706,-1000.0,0.00043398,14]
[404646396,1770373901715,-154.0,0.000434,120]
[404646397,1770373901725,-153.0,0.000434,120]
[404646398,1770373901734,-200.0,0.00043401,2]
[404646399,1770373901743,-1000.0,0.00043406,14]
[404646400,1770373901752,-723.92470364,0.00043425,30]
[404646401,1770373901762,-345.4823513,0.0004343,120]
[404646402,1770373901772,-1000.0,0.00043444,14]
[404646403,1770373901781,-1000.0,0.00043459,14]
[404646404,1770373901791,-75868.0,0.00043461,30]
[404646405,1770373901801,-1000.0,0.00043475,14]
[404646406,1770373901812,-1000.0,0.000435,2]
[404646407,1770373901823,-150.0,0.00043507,30]
[404646408,1770373901832,-1000.0,0.0004352,14]
[404646409,1770373901842,-150.0,0.00043549,14]
[404646410,1770373901851,-700.0,0.00043572,60]
[404646411,1770373901861,-2879.0,0.00043587,16]
[404646412,1770373901870,-723.92470364,0.00043589,30]
[404646413,1770373901880,-200.0,0.00043602,7]
[404646414,1770373901888,-865.93357542,0.00043611,120]
[404646415,1770373901898,-500.0,0.00043627,30]
[404646416,1770373901908,-150.0,0.0004363,30]
[404646417,1770373901917,-150.0,0.00043653,120]
[404646418,1770373901927,-63398.97925082,0.0004366,2]
[404646419,1770373901937,-150.0,0.00043679,14]
[404646420,1770373901947,-25000.0,0.0004369,120]
[404646421,1770373901957,-197.44,0.000437,120]
[404646422,1770373901966,-150.0,0.00043708,14]
[404646423,1770373901975,-1000.0,0.00043709,14]
[404646424,1770373901985,-11662.2,0.00043721,117]
[404646425,1770373901994,-1000.0,0.00043729,14]
[404646426,1770373902004,-150.0,0.00043752,30]
[404646427,1770373902014,-723.92470364,0.00043753,30]
[404646428,1770373902023,-150.0,0.00043765,14]
[404646429,1770373902037,-150.0,0.00043766,14]
[404646430,1770373902057,-1000.0,0.00043772,14]
[404646431,1770373902080,-116920.90871987,0.0004378,120]
[404646432,1770373902098,-150.0,0.00043795,120]
[404646433,1770373902109,-1000.0,0.000438,120]
[404646434,1770373902119,-80875.76604621,0.000438,120]
[404646435,1770373902129,-150.0,0.00043815,14]
[404646436,1770373902140,-1000.0,0.00043833,14]
[404646437,1770373902149,-150.0,0.00043834,2]
[404646438,1770373902160,-1999.0,0.00043835,120]
[404646439,1770373902170,-1537.0,0.00043836,30]
[404646440,1770373902179,-150.0,0.00043836,120]
[404646441,1770373902194,-290.57792607,0.00043845,120]
[404646442,1770373902205,-1121.41039354,0.00043845,120]
[404646443,1770373902216,-1300.0,0.00043846,60]
[404646444,1770373902226,-500.0,0.00043846,60]
[404646445,1770373902236,-3725.97,0.0004385,30]
[404646446,1770373902246,-4889.0,0.00043862,30]
[404646447,1770373902256,-150.0,0.00043875,30]
[404646448,1770373902266,-2000.0,0.00043885,3]
[404646449,1770373902275,-150.0,0.00043891,120]
[404646450,1770373902286,-2000.0,0.00043899,3]
[404646451,1770373902297,-2000.0,0.00043899,3]
[404646452,1770373902308,-5000.0,0.00043899,30]
[404646453,1770373902321,-338.88173769,0.000439,50]
[404646454,1770373902331,-75868.0,0.000439,30]
[404646455,1770373902341,-500.0,0.00043901,30]
[404646456,1770373902352,-162.40727241,0.00043928,14]
[404646457,1770373902363,-165.58750073,0.00043946,120]
[404646458,1770373902373,-457.57,0.00043958,30]
[404646459,1770373902383,-457.57,0.00043958,30]
[404646460,1770373902393,-200.0,0.00043959,120]
[404646461,1770373902403,-150.0,0.00043974,120]
[404646462,1770373902412,-1000.0,0.00043986,14]
[404646463,1770373902422,-1832.08280228,0.00043987,120]
[404646464,1770373902432,-217.58923349,0.00043995,16]
[404646465,1770373902442,-150.0,0.00043995,30]
[404646466,1770373902453,-188.48337178,0.00043995,30]
[404646467,1770373902463,-150.0,0.00043997,30]
[404646468,1770373902472,-1561.27719503,0.00043998,120]
[404646469,1770373902482,-1000.0,0.00043999,120]
[404646470,1770373902491,-1000.0,0.00044,120]
[404646471,1770373902501,-200.0,0.00044,120]
[404646472,1770373902510,-500.0,0.00044,120]
[404646473,1770373902519,-5000.0,0.00044,30]
[404646474,1770373902528,-574.53541848,0.00044,30]
[404646475,1770373902538,-10739.91247613,0.00044,7]
[404646476,1770373902548,-160.30617063,0.00044,14]
[404646477,1770373902558,-1890.0,0.00044,120]
[404646478,1770373902568,-1000.0,0.00044,2]
[404646479,1770373902579,-400.0,0.00044,120]
[404646480,1770373902589,-14693.565,0.00044,90]
[404646481,1770373902598,-14693.56,0.00044,90]
[404646482,1770373902608,-768.3582242,0.00044,120]
[404646483,1770373902618,-189.39239252,0.00044,120]
[404646484,1770373902628,-202.51963587,0.00044,50]
[404646485,1770373902638,-502.5462923,0.00044,15]
[404646486,1770373902648,-15079.38118924,0.00044,7]
[404646487,1770373902657,-14693.565,0.00044,90]
[404646488,1770373902667,-14693.56,0.00044,90]
[404646489,1770373902677,-5173.25166221,0.00044,30]
[404646490,1770373902687,-153.0,0.00044,120]
[404646491,1770373902698,-150.0,0.00044,73]
[404646492,1770373902708,-2080.7856387,0.00044,30]
[404646493,1770373902718,-276.01302841,0.00044,120]
[404646494,1770373902728,-442.21306152,0.00044,120]
[404646495,1770373902738,-1603.42,0.00044,14]
[404646496,1770373902748,-558.942467,0.00044,57]
[404646497,1770373902758,-274.4,0.00044,29]
[404646498,1770373902769,-253.0,0.00044,45]
[404646499,1770373902779,-180.439361,0.00044,10]
[404646500,1770373902790,-101268.9,0.00044,14]
[404646501,1770373902799,-500.0,0.00044,43]
[404646502,1770373902812,-1000.0,0.00044008,14]
[404646503,1770373902826,-1000.0,0.0004401,14]
[404646504,1770373902835,-150.0,0.00044029,14]
[404646505,1770373902846,-368.0,0.0004405,120]
[404646506,1770373902856,-150.0,0.00044054,120]
[404646507,1770373902866,-486.0,0.00044069,60]
[404646508,1770373902876,-913.0,0.00044069,60]
[404646509,1770373902887,-327.0,0.00044069,60]
[404646510,1770373902898,-400.0,0.0004407,3]
[404646511,1770373902917,-400.0,0.0004407,3]
[404646512,1770373902937,-400.0,0.0004407,3]
[404646513,1770373902953,-400.0,0.0004407,3]
[404646514,1770373902970,-250.0,0.0004407,3]
[404646515,1770373902981,-250.0,0.0004407,3]
[404646516,1770373902992,-501.82991628,0.0004407,3]
[404646517,1770373903006,-250.0,0.0004407,3]
[404646518,1770373903016,-166.19176531,0.00044076,14]
[404646519,1770373903026,-843.61075063,0.00044077,7]
[404646520,1770373903036,-251.3,0.00044078,120]
[404646521,1770373903046,-597.38,0.00044079,120]
[404646522,1770373903056,-576.0,0.00044079,30]
[404646523,1770373903066,-22270.90879205,0.0004408,30]
[404646524,1770373903079,-22270.90879205,0.0004408,30]
[404646525,1770373903088,-22270.90879205,0.0004408,30]
[404646526,1770373903098,-292.93913761,0.0004408,30]
[404646527,1770373903108,-292.93913761,0.0004408,30]
[404646528,1770373903126,-1076.99786911,0.0004408,5]
[404646529,1770373903147,-1000.0,0.0004408,60]
[404646530,1770373903166,-799.0,0.00044081,120]
[404646531,1770373903178,-200.0,0.00044081,7]
[404646532,1770373903189,-500.0,0.00044082,120]
[404646533,1770373903200,-500.0,0.00044082,120]
[404646534,1770373903210,-500.0,0.00044082,120]
[404646535,1770373903221,-500.0,0.00044082,120]
[404646536,1770373903231,-500.0,0.00044082,120]
[404646537,1770373903241,-500.0,0.00044082,120]
[404646538,1770373903252,-500.0,0.00044082,120]
[404646539,1770373903265,-500.0,0.00044082,120]
[404646540,1770373903275,-500.0,0.00044082,120]
[404646541,1770373903287,-500.0,0.00044082,120]
[404646542,1770373903300,-500.0,0.00044082,120]
[404646543,1770373903314,-500.0,0.00044082,120]
[404646544,1770373903331,-500.0,0.00044082,120]
[404646545,1770373903351,-500.0,0.00044082,120]
[404646546,1770373903368,-500.0,0.00044082,120]
[404646547,1770373903378,-500.0,0.00044082,120]
[404646548,1770373903388,-500.0,0.00044082,120]
[404646549,1770373903402,-500.0,0.00044082,120]
[404646550,1770373903419,-500.0,0.00044082,120]
[404646551,1770373903429,-500.0,0.00044082,120]
[404646552,1770373903440,-458.35532979,0.00044082,120]
[404646553,1770373903575,-1000.0,0.00044082,14]
[404646554,1770373903588,-150.0,0.00044087,5]
[404646555,1770373903600,-840.06802364,0.00044087,5]
[404646556,1770373903609,-1000.0,0.00044088,60]
[404646557,1770373903620,-1235.14,0.00044088,30]
[404646558,1770373903631,-560.41,0.00044088,30]
[404646559,1770373903641,-1235.14,0.00044088,30]
[404646560,1770373903653,-560.41,0.00044088,30]
[404646561,1770373903663,-560.41,0.00044088,30]
[404646562,1770373903673,-1235.14,0.00044088,30]
[404646563,1770373903683,-1235.14,0.00044088,30]
[404646564,1770373903694,-1235.14,0.00044088,30]
[404646565,1770373903704,-1235.14,0.00044088,30]
[404646566,1770373903715,-1235.14,0.00044088,30]
[404646567,1770373903725,-1235.14,0.00044088,30]
[404646568,1770373903734,-1235.14,0.00044088,30]
[404646569,1770373903744,-1235.14,0.00044088,30]
[404646570,1770373903753,-1235.14,0.00044088,30]
[404646571,1770373903763,-1235.14,0.00044088,30]
[404646572,1770373903773,-1235.14,0.00044088,30]
[404646573,1770373903783,-1235.14,0.00044088,30]
[404646574,1770373903792,-1235.14,0.00044088,30]
[404646575,1770373903802,-1235.14,0.00044088,30]
[404646576,1770373903812,-1235.14,0.00044088,30]
[404646577,1770373903825,-1235.14,0.00044088,30]
[404646578,1770373903836,-1235.14,0.00044088,30]
[404646579,1770373903846,-1235.14,0.00044088,30]
[404646580,1770373903855,-1235.14,0.00044088,30]
[404646581,1770373903866,-1235.14,0.00044088,30]
[404646582,1770373903875,-1235.14,0.00044088,30]
[404646583,1770373903885,-1118.99,0.00044088,30]
[404646584,1770373903894,-150.45,0.00044088,30]
[404646585,1770373903904,-555.93,0.00044088,30]
[404646586,1770373903913,-482.51,0.00044088,30]
[404646587,1770373903923,-150.0,0.00044088,30]
[404646588,1770373903934,-150.0,0.00044088,30]
[404646589,1770373903944,-150.0,0.00044088,30]
[404646590,1770373903954,-150.0,0.00044088,30]
[404646591,1770373903964,-180.41,0.00044088,30]
[404646592,1770373903973,-200.76,0.00044088,30]
[404646593,1770373903983,-469.94,0.00044088,30]
[404646594,1770373903992,-150.0,0.00044088,30]
[404646595,1770373904003,-150.0,0.00044088,30]
[404646596,1770373904014,-150.0,0.00044088,30]
[404646597,1770373904030,-150.0,0.00044088,30]
[404646598,1770373904051,-1348.9,0.00044088,30]
[404646599,1770373904063,-180.41,0.00044088,30]
[404646600,1770373904079,-150.0,0.00044088,30]
[404646601,1770373904092,-200.76,0.00044088,30]
[404646602,1770373904103,-469.94,0.00044088,30]
[404646603,1770373904115,-150.0,0.00044088,30]
[404646604,1770373904126,-150.0,0.00044088,30]
[404646605,1770373904137,-180.41,0.00044088,30]
[404646606,1770373904147,-150.0,0.00044088,30]
[404646607,1770373904158,-150.0,0.00044088,30]
[404646608,1770373904170,-150.0,0.00044088,30]
[404646609,1770373904181,-200.76,0.00044088,30]
[404646610,1770373904193,-469.94,0.00044088,30]
[404646611,1770373904203,-150.0,0.00044088,30]
[404646612,1770373904214,-180.41,0.00044088,30]
[404646613,1770373904223,-150.0,0.00044088,30]
[404646614,1770373904232,-150.0,0.00044088,30]
[404646615,1770373904242,-150.0,0.00044088,30]
[404646616,1770373904252,-200.76,0.00044088,30]
[404646617,1770373904263,-150.0,0.00044088,30]
[404646618,1770373904273,-469.94,0.00044088,30]
[404646619,1770373904284,-150.0,0.00044088,30]
[404646620,1770373904294,-180.41,0.00044088,30]
[404646621,1770373904303,-150.0,0.00044088,30]
[404646622,1770373904312,-150.0,0.00044088,30]
[404646623,1770373904321,-150.0,0.00044088,30]
[404646624,1770373904331,-200.76,0.00044088,30]
[404646625,1770373904340,-469.94,0.00044088,30]
[404646626,1770373904349,-150.0,0.00044088,30]
[404646627,1770373904358,-301.19,0.00044088,30]
[404646628,1770373904368,-150.0,0.00044088,30]
[404646629,1770373904378,-180.41,0.00044088,30]
[404646630,1770373904388,-469.94,0.00044088,30]
[404646631,1770373904398,-200.76,0.00044088,30]
[404646632,1770373904408,-150.0,0.00044088,30]
[404646633,1770373904418,-150.0,0.00044088,30]
[404646634,1770373904427,-150.0,0.00044088,30]
[404646635,1770373904436,-180.41,0.00044088,30]
[404646636,1770373904446,-150.0,0.00044088,30]
[404646637,1770373904455,-200.76,0.00044088,30]
[404646638,1770373904464,-469.94,0.00044088,30]
[404646639,1770373904474,-150.0,0.00044088,30]
[404646640,1770373904483,-180.41,0.00044088,30]
[404646641,1770373904493,-150.0,0.00044088,30]
[404646642,1770373904503,-150.0,0.00044088,30]
[404646643,1770373904513,-469.94,0.00044088,30]
[404646644,1770373904522,-200.76,0.00044088,30]